[Event "*** Titled Tuesday Blitz"]
[Site "Chess.com"]
[Date "2020.03.03"]
[Round "1"]
[White "Touching3200"]
[Black "chigorin28"]
[Result "1/2-1/2"]
[WhiteElo "2313"]
[BlackElo "2674"]
[TimeControl "180+1"]
[EndTime "9:08:46 PST"]
[Termination "Game drawn by repetition"]

1. e4 {[%clk 0:02:59.6]} 1... c5 {[%clk 0:02:59.2]} 2. Nf3 {[%clk 0:02:55.8]}
2... d6 {[%clk 0:02:59.5]} 3. d4 {[%clk 0:02:53.7]} 3... cxd4 {[%clk 0:02:59.9]}
4. Nxd4 {[%clk 0:02:53.3]} 4... Nf6 {[%clk 0:03:00.2]} 5. Nc3 {[%clk 0:02:52.2]}
5... a6 {[%clk 0:03:00.6]} 6. Bg5 {[%clk 0:02:49.5]} 6... e6 {[%clk 0:03:00.9]}
7. f4 {[%clk 0:02:46.4]} 7... Be7 {[%clk 0:02:59.6]} 8. Qf3 {[%clk 0:02:44.5]}
8... h6 {[%clk 0:02:59.9]} 9. Bh4 {[%clk 0:02:42]} 9... Qc7 {[%clk 0:02:56.1]}
10. O-O-O {[%clk 0:02:39.5]} 10... Nbd7 {[%clk 0:02:56.3]} 11. f5 {[%clk
0:02:22.6]} 11... e5 {[%clk 0:02:53.7]} 12. Nb3 {[%clk 0:02:19.5]} 12... b5
{[%clk 0:02:54.1]} 13. a3 {[%clk 0:02:14.7]} 13... Bb7 {[%clk 0:02:54.3]} 14.
Bxf6 {[%clk 0:02:10.3]} 14... Nxf6 {[%clk 0:02:53.7]} 15. g4 {[%clk 0:02:08.2]}
15... Rc8 {[%clk 0:02:52.8]} 16. Qe2 {[%clk 0:02:00]} 16... Nd7 {[%clk
0:02:34.9]} 17. h4 {[%clk 0:01:55.2]} 17... Nc5 {[%clk 0:02:29.5]} 18. Kb1
{[%clk 0:01:50.8]} 18... Na4 {[%clk 0:02:27.3]} 19. Nd5 {[%clk 0:01:46.1]} 19...
Bxd5 {[%clk 0:02:26.8]} 20. exd5 {[%clk 0:01:45.7]} 20... Nb6 {[%clk 0:02:13.6]}
21. Rh3 {[%clk 0:01:41.7]} 21... Nc4 {[%clk 0:02:09.5]} 22. Qg2 {[%clk
0:01:39.3]} 22... Qd8 {[%clk 0:02:07.3]} 23. Qg3 {[%clk 0:01:34.1]} 23... Bf6
{[%clk 0:02:00]} 24. Bxc4 {[%clk 0:01:30.9]} 24... Rxc4 {[%clk 0:01:56.5]} 25.
Re1 {[%clk 0:01:20.9]} 25... Be7 {[%clk 0:01:56.1]} 26. Nd2 {[%clk 0:01:18.1]}
26... Rf4 {[%clk 0:01:43.2]} 27. Re4 {[%clk 0:01:17.9]} 27... O-O {[%clk
0:01:41.8]} 28. Rxf4 {[%clk 0:01:12.5]} 28... exf4 {[%clk 0:01:42.7]} 29. Qxf4
{[%clk 0:01:12.9]} 29... Bxh4 {[%clk 0:01:39.9]} 30. Ne4 {[%clk 0:01:13.1]}
30... Re8 {[%clk 0:01:39.1]} 31. Rd3 {[%clk 0:01:08.4]} 31... Bf6 {[%clk
0:01:31.8]} 32. Re3 {[%clk 0:01:07.8]} 32... Be5 {[%clk 0:01:32]} 33. Qf3 {[%clk
0:01:04.7]} 33... Qb6 {[%clk 0:01:31.8]} 34. g5 {[%clk 0:01:01.3]} 34... hxg5
{[%clk 0:01:30.1]} 35. Nxg5 {[%clk 0:00:58.2]} 35... Qd4 {[%clk 0:01:30.3]} 36.
c3 {[%clk 0:00:55.4]} 36... Qh4 {[%clk 0:01:30.3]} 37. Ne4 {[%clk 0:00:51.9]}
37... Rc8 {[%clk 0:01:19.4]} 38. Nf2 {[%clk 0:00:51.1]} 38... Rc4 {[%clk
0:01:16.9]} 39. Nd3 {[%clk 0:00:50.1]} 39... Bf6 {[%clk 0:01:17.2]} 40. Ka2
{[%clk 0:00:44.5]} 40... Rg4 {[%clk 0:01:16.7]} 41. Nb4 {[%clk 0:00:41.4]} 41...
Rf4 {[%clk 0:01:16.8]} 42. Re8+ {[%clk 0:00:38.9]} 42... Kh7 {[%clk 0:01:17.3]}
43. Qd3 {[%clk 0:00:38.5]} 43... Qg5 {[%clk 0:01:03.9]} 44. Nxa6 {[%clk
0:00:38.1]} 44... Qxf5 {[%clk 0:01:01.7]} 45. Qxb5 {[%clk 0:00:37.6]} 45... g5
{[%clk 0:00:57.6]} 46. Nb4 {[%clk 0:00:32.9]} 46... g4 {[%clk 0:00:57.8]} 47.
Kb3 {[%clk 0:00:28.6]} 47... Rf1 {[%clk 0:00:54.4]} 48. Nc2 {[%clk 0:00:22.5]}
48... Rf2 {[%clk 0:00:54.7]} 49. Re2 {[%clk 0:00:18.7]} 49... g3 {[%clk
0:00:55.1]} 50. Ne3 {[%clk 0:00:15.3]} 50... Qf3 {[%clk 0:00:52.2]} 51. Rxf2
{[%clk 0:00:15.7]} 51... gxf2 {[%clk 0:00:51.8]} 52. Nf1 {[%clk 0:00:15.4]}
52... Be5 {[%clk 0:00:46.2]} 53. Ka2 {[%clk 0:00:15.2]} 53... Qd1 {[%clk
0:00:43.3]} 54. a4 {[%clk 0:00:15.2]} 54... Bf6 {[%clk 0:00:40.7]} 55. a5 {[%clk
0:00:15.3]} 55... Bd8 {[%clk 0:00:38.6]} 56. a6 {[%clk 0:00:15.7]} 56... Bb6
{[%clk 0:00:33.4]} 57. Qxb6 {[%clk 0:00:15.1]} 57... Qxf1 {[%clk 0:00:24.6]} 58.
a7 {[%clk 0:00:15.3]} 58... Qc4+ {[%clk 0:00:22.6]} 59. Qb3 {[%clk 0:00:12.6]}
59... f1=Q {[%clk 0:00:19.6]} 60. a8=Q {[%clk 0:00:09.9]} 60... Qxb3+ {[%clk
0:00:16.4]} 61. Kxb3 {[%clk 0:00:08.6]} 61... Qb5+ {[%clk 0:00:17.3]} 62. Kc2
{[%clk 0:00:07.6]} 62... Qe2+ {[%clk 0:00:17.3]} 63. Kb3 {[%clk 0:00:07.3]}
63... Qb5+ {[%clk 0:00:08.8]} 64. Kc2 {[%clk 0:00:07]} 64... Qe2+ {[%clk
0:00:08.7]} 65. Kb3 {[%clk 0:00:06.3]} 65... Qb5+ {[%clk 0:00:06.8]} 1/2-1/2

[Event "*** Titled Tuesday Blitz"]
[Site "Chess.com"]
[Date "2020.03.03"]
[Round "1"]
[White "mrkvoz"]
[Black "Gahan-MG"]
[Result "0-1"]
[WhiteElo "2716"]
[BlackElo "2455"]
[TimeControl "180+1"]
[EndTime "9:08:50 PST"]
[Termination "Gahan-MG won by resignation"]

1. e4 {[%clk 0:03:00.9]} 1... c5 {[%clk 0:02:17]} 2. Nc3 {[%clk 0:02:58.8]} 2...
e6 {[%clk 0:02:16.8]} 3. Nge2 {[%clk 0:02:50.1]} 3... a6 {[%clk 0:02:16.7]} 4.
g3 {[%clk 0:02:49.9]} 4... Nf6 {[%clk 0:02:16.5]} 5. Bg2 {[%clk 0:02:50]} 5...
d6 {[%clk 0:02:16.1]} 6. O-O {[%clk 0:02:49]} 6... Be7 {[%clk 0:02:16.7]} 7. d3
{[%clk 0:02:47.9]} 7... O-O {[%clk 0:02:16.8]} 8. f4 {[%clk 0:02:47.8]} 8... Nc6
{[%clk 0:02:17]} 9. h3 {[%clk 0:02:47.9]} 9... Qc7 {[%clk 0:02:16.7]} 10. g4
{[%clk 0:02:48.1]} 10... b5 {[%clk 0:02:16.9]} 11. Ng3 {[%clk 0:02:47.9]} 11...
Bb7 {[%clk 0:02:13.3]} 12. g5 {[%clk 0:02:47.5]} 12... Nd7 {[%clk 0:02:13.5]}
13. h4 {[%clk 0:02:48.3]} 13... Nd4 {[%clk 0:02:11.4]} 14. Nce2 {[%clk 0:02:48]}
14... Rfc8 {[%clk 0:02:08.3]} 15. Be3 {[%clk 0:02:47.5]} 15... d5 {[%clk
0:02:02.4]} 16. c3 {[%clk 0:02:37.6]} 16... Nxe2+ {[%clk 0:01:58.4]} 17. Qxe2
{[%clk 0:02:38.5]} 17... dxe4 {[%clk 0:01:56.8]} 18. dxe4 {[%clk 0:02:39.1]}
18... c4 {[%clk 0:01:55.9]} 19. Rad1 {[%clk 0:02:36.3]} 19... Bc5 {[%clk
0:01:55.1]} 20. Kh1 {[%clk 0:02:17.8]} 20... Bxe3 {[%clk 0:01:54.6]} 21. Qxe3
{[%clk 0:02:18.7]} 21... Nc5 {[%clk 0:01:54.9]} 22. f5 {[%clk 0:02:18.7]} 22...
exf5 {[%clk 0:01:50.5]} 23. Nxf5 {[%clk 0:02:15.8]} 23... Rd8 {[%clk 0:01:27.3]}
24. h5 {[%clk 0:02:10.6]} 24... Qe5 {[%clk 0:01:26.9]} 25. Rd4 {[%clk 0:01:58]}
25... Ne6 {[%clk 0:01:08]} 26. Rdd1 {[%clk 0:01:47]} 26... Rd3 {[%clk
0:01:03.7]} 27. Rxd3 {[%clk 0:01:44.3]} 27... cxd3 {[%clk 0:01:04.6]} 28. g6
{[%clk 0:01:43.3]} 28... hxg6 {[%clk 0:00:54]} 29. hxg6 {[%clk 0:01:44.2]} 29...
fxg6 {[%clk 0:00:48.7]} 30. Ne7+ {[%clk 0:01:44]} 30... Kh7 {[%clk 0:00:49.1]}
31. Qxd3 {[%clk 0:01:34.7]} 31... Nf4 {[%clk 0:00:41.2]} 32. Qg3 {[%clk
0:00:30.6]} 32... Qh5+ {[%clk 0:00:30.6]} 33. Qh2 {[%clk 0:00:30.8]} 33... Nxg2
{[%clk 0:00:26.8]} 34. Kxg2 {[%clk 0:00:30.3]} 34... Bxe4+ {[%clk 0:00:26.6]}
35. Kg3 {[%clk 0:00:30.7]} 35... Re8 {[%clk 0:00:20.4]} 36. Rf7 {[%clk
0:00:26.3]} 36... Kh6 {[%clk 0:00:14.7]} 37. Qxh5+ {[%clk 0:00:16.7]} 37... gxh5
{[%clk 0:00:14.8]} 38. Kf4 {[%clk 0:00:17.6]} 38... Bg6 {[%clk 0:00:13.6]} 39.
Nxg6 {[%clk 0:00:17.1]} 39... Kxg6 {[%clk 0:00:14.5]} 40. Ra7 {[%clk 0:00:17.8]}
40... Re6 {[%clk 0:00:15]} 41. b3 {[%clk 0:00:17.4]} 41... Rf6+ {[%clk
0:00:15.9]} 42. Ke5 {[%clk 0:00:17.4]} 42... h4 {[%clk 0:00:15.2]} 43. Ra8
{[%clk 0:00:16.5]} 43... Kg5 {[%clk 0:00:14.7]} 44. Rg8 {[%clk 0:00:15.7]} 44...
Rg6 {[%clk 0:00:12.3]} 45. Rh8 {[%clk 0:00:15.8]} 45... Rh6 {[%clk 0:00:11.6]}
46. Rg8 {[%clk 0:00:16.1]} 46... g6 {[%clk 0:00:11.9]} 47. Rf8 {[%clk
0:00:16.2]} 47... h3 {[%clk 0:00:12]} 48. Rf1 {[%clk 0:00:16.2]} 48... h2 {[%clk
0:00:12.5]} 49. Rh1 {[%clk 0:00:16.2]} 49... Kg4 {[%clk 0:00:13.1]} 50. Kf6
{[%clk 0:00:16.5]} 50... g5+ {[%clk 0:00:13.1]} 51. Kg7 {[%clk 0:00:16.9]} 51...
Rh3 {[%clk 0:00:13.3]} 52. Kg6 {[%clk 0:00:17.8]} 52... Kh4 {[%clk 0:00:11.5]}
53. c4 {[%clk 0:00:18]} 53... bxc4 {[%clk 0:00:11]} 54. bxc4 {[%clk 0:00:18.6]}
54... g4 {[%clk 0:00:11.4]} 55. c5 {[%clk 0:00:19.5]} 55... g3 {[%clk
0:00:11.9]} 56. c6 {[%clk 0:00:19.9]} 56... g2 {[%clk 0:00:12.4]} 57. c7 {[%clk
0:00:20.3]} 57... gxh1=Q {[%clk 0:00:10.5]} 58. c8=Q {[%clk 0:00:20.1]} 58...
Qg1+ {[%clk 0:00:11.1]} 59. Kh7 {[%clk 0:00:19.5]} 59... h1=Q {[%clk 0:00:09]}
60. Qc4+ {[%clk 0:00:15.9]} 60... Kg3+ {[%clk 0:00:09.3]} 61. Kg6 {[%clk
0:00:14.5]} 61... Kh2+ {[%clk 0:00:09.3]} 62. Kf5 {[%clk 0:00:14.7]} 62... Qf3+
{[%clk 0:00:09.5]} 63. Ke5 {[%clk 0:00:12.7]} 63... Qge3+ {[%clk 0:00:09.7]} 64.
Kd6 {[%clk 0:00:12.5]} 64... Rh6+ {[%clk 0:00:09.8]} 0-1

[Event "*** Titled Tuesday Blitz"]
[Site "Chess.com"]
[Date "2020.03.03"]
[Round "1"]
[White "SHIVACalypso"]
[Black "doons21"]
[Result "1-0"]
[WhiteElo "2200"]
[BlackElo "2586"]
[TimeControl "180+1"]
[EndTime "9:08:50 PST"]
[Termination "SHIVACalypso won on time"]

1. Nf3 {[%clk 0:02:59.3]} 1... Nf6 {[%clk 0:02:59.3]} 2. c4 {[%clk 0:02:59.5]}
2... g6 {[%clk 0:02:59.4]} 3. g3 {[%clk 0:02:59.5]} 3... Bg7 {[%clk 0:02:59.8]}
4. Bg2 {[%clk 0:03:00]} 4... O-O {[%clk 0:03:00.7]} 5. O-O {[%clk 0:03:00.2]}
5... d6 {[%clk 0:03:01.1]} 6. Nc3 {[%clk 0:02:59.9]} 6... c6 {[%clk 0:02:59.3]}
7. Rb1 {[%clk 0:02:58]} 7... a5 {[%clk 0:02:58.8]} 8. a3 {[%clk 0:02:57.7]} 8...
d5 {[%clk 0:02:58]} 9. cxd5 {[%clk 0:02:52]} 9... cxd5 {[%clk 0:02:58]} 10. d4
{[%clk 0:02:51.4]} 10... Bf5 {[%clk 0:02:56.4]} 11. Ra1 {[%clk 0:02:47.8]} 11...
Ne4 {[%clk 0:02:55.9]} 12. Nh4 {[%clk 0:02:39.7]} 12... Nxc3 {[%clk 0:02:54.3]}
13. bxc3 {[%clk 0:02:40.6]} 13... Be6 {[%clk 0:02:40]} 14. Rb1 {[%clk 0:02:39]}
14... Qd7 {[%clk 0:02:19.3]} 15. Qb3 {[%clk 0:02:37.3]} 15... Ra7 {[%clk
0:02:19.1]} 16. Bd2 {[%clk 0:02:28.4]} 16... a4 {[%clk 0:02:06]} 17. Qb6 {[%clk
0:02:22.6]} 17... Nc6 {[%clk 0:02:06.2]} 18. Nf3 {[%clk 0:02:21]} 18... Bf5
{[%clk 0:01:57.2]} 19. Rb5 {[%clk 0:02:07.6]} 19... Be4 {[%clk 0:01:56.9]} 20.
Ne1 {[%clk 0:02:00.9]} 20... Bxg2 {[%clk 0:01:54.9]} 21. Nxg2 {[%clk 0:02:01.8]}
21... Rfa8 {[%clk 0:01:51.1]} 22. Rfb1 {[%clk 0:01:55.6]} 22... e6 {[%clk
0:01:42.3]} 23. Bf4 {[%clk 0:01:47.3]} 23... Bf8 {[%clk 0:01:38.1]} 24. Ra1
{[%clk 0:01:34.7]} 24... Na5 {[%clk 0:01:35.9]} 25. Ne3 {[%clk 0:01:21.6]} 25...
Ra6 {[%clk 0:01:28.1]} 26. Rxa5 {[%clk 0:01:11.6]} 26... Rxb6 {[%clk 0:01:08.2]}
27. Rxa8 {[%clk 0:01:10.9]} 27... Kg7 {[%clk 0:01:09.1]} 28. Ng4 {[%clk
0:01:09.2]} 28... f6 {[%clk 0:00:51.3]} 29. Bh6+ {[%clk 0:01:06.4]} 29... Kf7
{[%clk 0:00:51.6]} 30. Rxf8+ {[%clk 0:01:03.5]} 30... Ke7 {[%clk 0:00:51.8]} 31.
Nxf6 {[%clk 0:00:48.9]} 31... Qb5 {[%clk 0:00:51.9]} 32. Ng8+ {[%clk 0:00:47.7]}
32... Kd7 {[%clk 0:00:47.9]} 33. Rf7+ {[%clk 0:00:47.4]} 33... Kc6 {[%clk
0:00:46]} 34. Re7 {[%clk 0:00:42]} 34... Qxe2 {[%clk 0:00:44.4]} 35. Be3 {[%clk
0:00:36.3]} 35... Rb3 {[%clk 0:00:38]} 36. Rxe6+ {[%clk 0:00:35.7]} 36... Kb5
{[%clk 0:00:37.1]} 37. Ne7 {[%clk 0:00:34.2]} 37... Kc4 {[%clk 0:00:37.4]} 38.
Re5 {[%clk 0:00:31.3]} 38... Rb5 {[%clk 0:00:34.4]} 39. Nc8 {[%clk 0:00:27.5]}
39... Kd3 {[%clk 0:00:29.2]} 40. Nd6 {[%clk 0:00:25.7]} 40... Rb3 {[%clk
0:00:29.4]} 41. Rxd5 {[%clk 0:00:23.9]} 41... h5 {[%clk 0:00:29.8]} 42. h4
{[%clk 0:00:20.5]} 42... Kxc3 {[%clk 0:00:23]} 43. Rc5+ {[%clk 0:00:19.3]} 43...
Kd3 {[%clk 0:00:23.4]} 44. Rac1 {[%clk 0:00:18.4]} 44... b6 {[%clk 0:00:19.5]}
45. Rc6 {[%clk 0:00:17.4]} 45... Rxa3 {[%clk 0:00:18.9]} 46. Nf7 {[%clk
0:00:17.5]} 46... Rb3 {[%clk 0:00:17.5]} 47. Re6 {[%clk 0:00:17.3]} 47... Qb2
{[%clk 0:00:14.5]} 48. Ne5+ {[%clk 0:00:16.2]} 48... Ke2 {[%clk 0:00:14.8]} 49.
Rf1 {[%clk 0:00:15.3]} 49... a3 {[%clk 0:00:10.9]} 50. Nc4 {[%clk 0:00:15]}
50... Qc2 {[%clk 0:00:09.9]} 51. Bc1+ {[%clk 0:00:12.7]} 51... Kd3 {[%clk
0:00:09.2]} 52. Ne5+ {[%clk 0:00:12.6]} 52... Kc3 {[%clk 0:00:09.6]} 53. Be3
{[%clk 0:00:11.8]} 53... Kb2 {[%clk 0:00:08.9]} 54. Rc1 {[%clk 0:00:09.1]} 54...
Qe2 {[%clk 0:00:07.7]} 55. Nc4+ {[%clk 0:00:08.2]} 55... Ka2 {[%clk 0:00:07.2]}
56. Nxb6 {[%clk 0:00:07.1]} 56... Rb1 {[%clk 0:00:06.3]} 57. Rxb1 {[%clk
0:00:06.8]} 57... Kxb1 {[%clk 0:00:07.2]} 58. Nd5 {[%clk 0:00:06]} 58... a2
{[%clk 0:00:07]} 59. Nc3+ {[%clk 0:00:05.9]} 59... Kc2 {[%clk 0:00:06.2]} 60.
Nxe2 {[%clk 0:00:05.5]} 60... a1=Q+ {[%clk 0:00:07.1]} 61. Kg2 {[%clk 0:00:06]}
61... Kd1 {[%clk 0:00:07.3]} 62. Nf4 {[%clk 0:00:05.6]} 62... Qa8+ {[%clk
0:00:07.5]} 63. Kh2 {[%clk 0:00:05]} 63... Ke1 {[%clk 0:00:07.5]} 64. Rxg6
{[%clk 0:00:03.8]} 64... Kf1 {[%clk 0:00:07.5]} 65. Rg5 {[%clk 0:00:03.8]} 65...
Qf3 {[%clk 0:00:05.4]} 66. d5 {[%clk 0:00:03.5]} 66... Qd1 {[%clk 0:00:01.6]}
67. Re5 {[%clk 0:00:01.9]} 67... Ke1 {[%clk 0:00:01.3]} 68. Re6 {[%clk
0:00:02.1]} 68... Kf1 {[%clk 0:00:01]} 69. d6 {[%clk 0:00:02.3]} 1-0

[Event "*** Titled Tuesday Blitz"]
[Site "Chess.com"]
[Date "2020.03.03"]
[Round "1"]
[White "Gogolev_Artemy"]
[Black "Jospem"]
[Result "0-1"]
[WhiteElo "2517"]
[BlackElo "2914"]
[TimeControl "180+1"]
[EndTime "9:08:52 PST"]
[Termination "Jospem won on time"]

1. d4 {[%clk 0:02:57]} 1... Nf6 {[%clk 0:02:59.8]} 2. c4 {[%clk 0:02:56.9]} 2...
e6 {[%clk 0:03:00]} 3. g3 {[%clk 0:02:56.8]} 3... Bb4+ {[%clk 0:02:57.6]} 4. Nd2
{[%clk 0:02:56.1]} 4... d5 {[%clk 0:02:54.8]} 5. Bg2 {[%clk 0:02:55.2]} 5... O-O
{[%clk 0:02:54.5]} 6. Nf3 {[%clk 0:02:55.4]} 6... b6 {[%clk 0:02:55]} 7. O-O
{[%clk 0:02:52.5]} 7... Bb7 {[%clk 0:02:55.3]} 8. b3 {[%clk 0:02:50.6]} 8... a5
{[%clk 0:02:48.1]} 9. Bb2 {[%clk 0:02:49.4]} 9... Nbd7 {[%clk 0:02:45.7]} 10.
cxd5 {[%clk 0:02:40.3]} 10... exd5 {[%clk 0:02:45.4]} 11. Ne5 {[%clk 0:02:39.6]}
11... Qe7 {[%clk 0:02:35.4]} 12. Ndf3 {[%clk 0:02:35.3]} 12... Bd6 {[%clk
0:02:20.2]} 13. Rc1 {[%clk 0:02:28.6]} 13... h6 {[%clk 0:02:20.5]} 14. e3 {[%clk
0:02:18]} 14... Qe6 {[%clk 0:02:16.9]} 15. Nxd7 {[%clk 0:02:14.3]} 15... Nxd7
{[%clk 0:02:16.6]} 16. Qc2 {[%clk 0:02:11.3]} 16... Rac8 {[%clk 0:02:07.5]} 17.
Nd2 {[%clk 0:02:04.9]} 17... c5 {[%clk 0:02:02.4]} 18. dxc5 {[%clk 0:02:02.4]}
18... bxc5 {[%clk 0:02:03.3]} 19. Nc4 {[%clk 0:01:59.4]} 19... Bc7 {[%clk
0:01:59.6]} 20. Rfd1 {[%clk 0:01:58.8]} 20... Rfd8 {[%clk 0:01:58.4]} 21. Bc3
{[%clk 0:01:55.4]} 21... Ra8 {[%clk 0:01:54.4]} 22. Qb2 {[%clk 0:01:46.3]} 22...
Bc6 {[%clk 0:01:39.4]} 23. Nd2 {[%clk 0:01:38.3]} 23... Ne5 {[%clk 0:01:34.7]}
24. Qc2 {[%clk 0:01:28.8]} 24... d4 {[%clk 0:01:24.8]} 25. exd4 {[%clk
0:01:17.6]} 25... Bxg2 {[%clk 0:01:24.7]} 26. dxe5 {[%clk 0:01:09.1]} 26... Bc6
{[%clk 0:01:22.7]} 27. Nc4 {[%clk 0:01:06.2]} 27... Rd4 {[%clk 0:00:59.6]} 28.
Bxd4 {[%clk 0:00:54.5]} 28... Qd5 {[%clk 0:00:59.9]} 29. f3 {[%clk 0:00:33.7]}
29... Qxf3 {[%clk 0:00:59.8]} 30. Bxc5 {[%clk 0:00:33.8]} 30... Qh1+ {[%clk
0:01:00]} 31. Kf2 {[%clk 0:00:33.8]} 31... Qxh2+ {[%clk 0:01:00.9]} 32. Ke1
{[%clk 0:00:29.9]} 32... Qxg3+ {[%clk 0:00:49.3]} 33. Qf2 {[%clk 0:00:29.4]}
33... Qg6 {[%clk 0:00:45]} 34. Bd6 {[%clk 0:00:24.1]} 34... Bd8 {[%clk
0:00:42.2]} 35. Rd4 {[%clk 0:00:19.3]} 35... Bg5 {[%clk 0:00:41]} 36. Rcd1
{[%clk 0:00:18]} 36... Re8 {[%clk 0:00:40.8]} 37. R4d3 {[%clk 0:00:13.3]} 37...
Qh5 {[%clk 0:00:30.1]} 38. Kf1 {[%clk 0:00:13.2]} 38... Be4 {[%clk 0:00:25.8]}
39. Rd4 {[%clk 0:00:12.1]} 39... f5 {[%clk 0:00:17.4]} 40. exf6 {[%clk
0:00:11.4]} 40... gxf6 {[%clk 0:00:17.5]} 41. Bh2 {[%clk 0:00:10.3]} 41... Qh3+
{[%clk 0:00:16.9]} 42. Kg1 {[%clk 0:00:09.6]} 42... Qg4+ {[%clk 0:00:17.4]} 43.
Kf1 {[%clk 0:00:09.9]} 43... f5 {[%clk 0:00:14.1]} 44. Rxe4 {[%clk 0:00:09.1]}
44... fxe4 {[%clk 0:00:13.2]} 45. Rd6 {[%clk 0:00:07.4]} 45... Qh3+ {[%clk
0:00:09.2]} 46. Qg2 {[%clk 0:00:05.9]} 46... Rf8+ {[%clk 0:00:08.9]} 47. Kg1
{[%clk 0:00:05.8]} 47... Qf5 {[%clk 0:00:03.5]} 48. Bg3 {[%clk 0:00:05.5]} 48...
e3 {[%clk 0:00:03.6]} 49. Kh2 {[%clk 0:00:05.7]} 49... Kh8 {[%clk 0:00:02.6]}
50. Nxe3 {[%clk 0:00:05.7]} 50... Bxe3 {[%clk 0:00:02.4]} 51. Qd5 {[%clk
0:00:06.1]} 51... Qxd5 {[%clk 0:00:02.1]} 52. Rxd5 {[%clk 0:00:06.2]} 52... Rc8
{[%clk 0:00:02.8]} 53. Rxa5 {[%clk 0:00:05.8]} 53... Rc2+ {[%clk 0:00:03.5]} 54.
Kh3 {[%clk 0:00:06.2]} 54... Kh7 {[%clk 0:00:04.3]} 55. Kg4 {[%clk 0:00:05.3]}
55... Bd2 {[%clk 0:00:04.5]} 56. Kf3 {[%clk 0:00:05]} 56... Bxa5 {[%clk
0:00:04.3]} 0-1

[Event "*** Titled Tuesday Blitz"]
[Site "Chess.com"]
[Date "2020.03.03"]
[Round "1"]
[White "renehp"]
[Black "Volodar_Murzin"]
[Result "0-1"]
[WhiteElo "2323"]
[BlackElo "2692"]
[TimeControl "180+1"]
[EndTime "9:09:02 PST"]
[Termination "Volodar_Murzin won by resignation"]

1. e4 {[%clk 0:02:55.7]} 1... c6 {[%clk 0:02:58.6]} 2. d3 {[%clk 0:02:54.1]}
2... d5 {[%clk 0:02:58.2]} 3. Nf3 {[%clk 0:02:53.1]} 3... dxe4 {[%clk
0:02:57.9]} 4. dxe4 {[%clk 0:02:53.2]} 4... Qxd1+ {[%clk 0:02:58.6]} 5. Kxd1
{[%clk 0:02:53.3]} 5... Nd7 {[%clk 0:02:59.3]} 6. Bf4 {[%clk 0:02:52.2]} 6...
Ngf6 {[%clk 0:02:54.5]} 7. Nbd2 {[%clk 0:02:48.2]} 7... e6 {[%clk 0:02:51.6]} 8.
Bd3 {[%clk 0:02:43.5]} 8... Bc5 {[%clk 0:02:49.8]} 9. Ke2 {[%clk 0:02:41]} 9...
O-O {[%clk 0:02:47.3]} 10. c3 {[%clk 0:02:36.9]} 10... Re8 {[%clk 0:02:46.7]}
11. Rhd1 {[%clk 0:02:28.6]} 11... e5 {[%clk 0:02:46]} 12. Be3 {[%clk 0:02:27.4]}
12... Bd6 {[%clk 0:02:31.8]} 13. a4 {[%clk 0:02:22.9]} 13... Bc7 {[%clk
0:02:27.4]} 14. Bc2 {[%clk 0:02:21.7]} 14... Ng4 {[%clk 0:02:26]} 15. Nc4 {[%clk
0:02:17.6]} 15... Nxe3 {[%clk 0:02:25.1]} 16. Kxe3 {[%clk 0:02:17.7]} 16... Nb6
{[%clk 0:02:22]} 17. Nxb6 {[%clk 0:02:04.3]} 17... axb6 {[%clk 0:02:11.8]} 18.
Bb3 {[%clk 0:01:58.8]} 18... Kf8 {[%clk 0:02:05.4]} 19. h3 {[%clk 0:01:53.6]}
19... Ke7 {[%clk 0:02:01.4]} 20. Nd2 {[%clk 0:01:44.8]} 20... f6 {[%clk
0:01:53.6]} 21. Nf1 {[%clk 0:01:38.9]} 21... Ra5 {[%clk 0:01:47.3]} 22. Ke2
{[%clk 0:01:35.9]} 22... b5 {[%clk 0:01:41.4]} 23. axb5 {[%clk 0:01:27.8]} 23...
Rxb5 {[%clk 0:01:40.8]} 24. Nd2 {[%clk 0:01:28]} 24... Rd8 {[%clk 0:01:38.8]}
25. Ra3 {[%clk 0:01:05.7]} 25... Bd6 {[%clk 0:01:36.1]} 26. Ra2 {[%clk
0:01:03.8]} 26... Rxb3 {[%clk 0:01:01]} 27. Nxb3 {[%clk 0:01:00.5]} 27... Be6
{[%clk 0:01:01.2]} 28. Rxd6 {[%clk 0:01:00]} 28... Kxd6 {[%clk 0:00:51.1]} 29.
Ra3 {[%clk 0:00:57.4]} 29... Bc4+ {[%clk 0:00:51]} 30. Ke1 {[%clk 0:00:48.6]}
30... Kc7 {[%clk 0:00:50.6]} 31. Nd2 {[%clk 0:00:46.2]} 31... Bd3 {[%clk
0:00:47.2]} 32. c4 {[%clk 0:00:43.3]} 32... Rd4 {[%clk 0:00:44.7]} 33. f3 {[%clk
0:00:20.4]} 33... Bxc4 {[%clk 0:00:33.8]} 34. Nxc4 {[%clk 0:00:17.8]} 34... Rxc4
{[%clk 0:00:33.6]} 35. Kd2 {[%clk 0:00:18.3]} 35... Rd4+ {[%clk 0:00:31.7]} 36.
Ke2 {[%clk 0:00:15.8]} 36... Rb4 {[%clk 0:00:28.9]} 37. b3 {[%clk 0:00:15.7]}
37... Kb8 {[%clk 0:00:23.9]} 38. Kd3 {[%clk 0:00:13.4]} 38... Rb6 {[%clk
0:00:23.3]} 39. Kc4 {[%clk 0:00:10.3]} 39... Ra6 {[%clk 0:00:20.5]} 40. Rxa6
{[%clk 0:00:09.7]} 40... bxa6 {[%clk 0:00:21.4]} 41. Kc5 {[%clk 0:00:10.2]}
41... Kb7 {[%clk 0:00:21.2]} 42. b4 {[%clk 0:00:10.7]} 42... Kc7 {[%clk
0:00:20.4]} 43. h4 {[%clk 0:00:10.6]} 43... h6 {[%clk 0:00:17.7]} 44. h5 {[%clk
0:00:10.3]} 44... Kb7 {[%clk 0:00:16.6]} 45. g3 {[%clk 0:00:09.8]} 45... Kc7
{[%clk 0:00:16.5]} 46. f4 {[%clk 0:00:10]} 46... Kb7 {[%clk 0:00:14.2]} 47. fxe5
{[%clk 0:00:10.2]} 47... fxe5 {[%clk 0:00:14.1]} 48. Kd6 {[%clk 0:00:10.6]}
48... Kb6 {[%clk 0:00:12.6]} 49. Kxe5 {[%clk 0:00:11]} 49... c5 {[%clk
0:00:12.8]} 50. Kd6 {[%clk 0:00:06.5]} 50... cxb4 {[%clk 0:00:05.4]} 51. e5
{[%clk 0:00:06.9]} 51... b3 {[%clk 0:00:05.8]} 52. e6 {[%clk 0:00:07.4]} 52...
b2 {[%clk 0:00:06.3]} 53. e7 {[%clk 0:00:07.9]} 53... b1=Q {[%clk 0:00:06.7]}
54. e8=Q {[%clk 0:00:07.5]} 54... Qd3+ {[%clk 0:00:07.3]} 55. Ke7 {[%clk
0:00:08]} 55... Qe3+ {[%clk 0:00:07.7]} 56. Kf8 {[%clk 0:00:08.4]} 56... Qxe8+
{[%clk 0:00:08.5]} 57. Kxe8 {[%clk 0:00:08.8]} 57... a5 {[%clk 0:00:09.3]} 58.
Kf7 {[%clk 0:00:09.3]} 58... a4 {[%clk 0:00:10]} 59. Kxg7 {[%clk 0:00:09.8]}
59... a3 {[%clk 0:00:10.8]} 60. Kxh6 {[%clk 0:00:10.4]} 60... a2 {[%clk
0:00:11.5]} 61. Kh7 {[%clk 0:00:09.9]} 61... a1=Q {[%clk 0:00:12.1]} 62. h6
{[%clk 0:00:10.4]} 62... Qf6 {[%clk 0:00:12.6]} 63. g4 {[%clk 0:00:09.5]} 63...
Qg5 {[%clk 0:00:13]} 64. Kh8 {[%clk 0:00:08.1]} 64... Qxh6+ {[%clk 0:00:13.5]}
0-1